bitfinex/quotes_SOLUSD_20241209
["timestamp","ask_amount","ask_price","bid_price","bid_amount"]
[1733727731838,0.81333385,230.6,230.43,1.5991]
[1733727731839,0.81333385,230.6,230.43,10.25537811]
[1733727732333,0.81333385,230.6,230.43,1.5991]
[1733727732531,20.81333385,230.6,230.43,1.5991]
[1733727732702,20.0,230.56,230.43,10.25537811]
[1733727732901,0.81343673,230.55,230.43,10.25537811]
[1733727733506,0.81343673,230.55,230.44,8.65627811]
[1733727733713,0.81343673,230.55,230.43,2.24980281]
[1733727734037,0.81343673,230.55,230.44,8.65627811]
[1733727734566,20.0,230.56,230.44,8.65627811]
[1733727734711,0.8133749,230.55,230.44,8.65627811]
[1733727735316,0.8133749,230.55,230.43,2.24980281]
[1733727735511,20.0,230.56,230.43,2.24980281]
[1733727735707,0.81331929,230.55,230.43,2.24980281]
[1733727735909,0.81331929,230.55,230.43,1.5991]
[1733727736935,20.0,230.51,230.43,1.5991]
[1733727737252,0.81354751,230.5,230.43,1.5991]
[1733727737731,20.0,230.51,230.43,1.5991]
[1733727738309,0.81352564,230.53,230.43,1.5991]
[1733727740637,20.0,230.51,230.43,1.5991]
[1733727740938,0.81356639,230.5,230.43,1.5991]
[1733727741141,23.776884,230.49,230.37,0.65085311]
[1733727741311,0.8137127,230.48,230.37,0.65085311]
[1733727741717,20.0,230.46,230.37,0.65085311]
[1733727741913,0.81371363,230.45,230.37,0.65085311]
[1733727743750,20.0,230.46,230.37,0.65085311]
[1733727744120,0.81371055,230.48,230.37,9.30713122]
[1733727745927,0.81371055,230.48,230.37,0.65085311]
[1733727746614,20.0,230.46,230.37,0.65085311]
[1733727747222,0.81370216,230.45,230.36,19.39013614]
[1733727747932,23.776884,230.44,230.36,11.76783614]
[1733727748110,0.81383867,230.43,230.36,11.76783614]
[1733727749513,0.81381986,230.45,230.36,11.76783614]
[1733727749747,0.81381986,230.45,230.37,0.65102094]
[1733727749953,0.81377617,230.46,230.37,0.65102094]
[1733727752245,3.22741201,230.53,230.37,0.65102094]
[1733727752246,0.81370345,230.49,230.37,0.65102094]
[1733727752449,20.0,230.45,230.37,0.65102094]
[1733727753035,20.0,230.52,230.37,0.65102094]
[1733727753237,0.81362266,230.51,230.37,0.65102094]
[1733727754414,20.0,230.47,230.37,0.65102094]
[1733727756232,20.0,230.47,230.38,7.7474]
[1733727756539,0.81367034,230.49,230.39,0.65088368]
[1733727756745,20.0,230.52,230.39,0.65088368]
[1733727756746,0.81353972,230.51,230.39,9.30716179]
[1733727757092,0.81353972,230.51,230.39,0.65088368]
[1733727757225,23.776884,230.54,230.39,0.65088368]
[1733727757426,20.0,230.51,230.39,0.65088368]
[1733727757626,0.81356652,230.5,230.39,0.65088368]
[1733727760340,20.0,230.51,230.39,9.30716179]
[1733727761274,0.8135051,230.5,230.39,0.65088368]
[1733727761840,20.0,230.51,230.39,9.30716179]
[1733727762270,22.27748455,230.58,230.41,8.65627811]
[1733727762478,0.81348455,230.58,230.43,1.6451]
[1733727763345,0.81347296,230.57,230.43,1.6451]
[1733727764376,20.0,230.53,230.43,1.6451]
[1733727765075,20.0,230.53,230.44,6.5648]
[1733727766340,20.0,230.53,230.37,414.972819]
[1733727766341,24.59030898,230.52,230.38,2.29583998]
[1733727766570,0.81342498,230.52,230.38,2.29583998]
[1733727766755,23.776884,230.53,230.38,2.29583998]
[1733727767088,20.0,230.5,230.38,10.95211809]
[1733727767657,0.81353889,230.52,230.39,8.65627811]
[1733727767955,0.81353889,230.52,230.4,0.65082769]
[1733727769466,0.81353889,230.52,230.39,0.65081619]
[1733727769784,20.0,230.54,230.4,6.1034]
[1733727769947,0.8134991,230.53,230.4,6.1034]
[1733727772049,0.81352203,230.53,230.42,1.5441]
[1733727780278,23.776884,230.52,230.42,1.5441]
[1733727780486,0.81358873,230.51,230.42,1.5441]
[1733727780775,23.776884,230.57,230.42,1.5441]
[1733727780989,20.0,230.54,230.42,1.5441]
[1733727781176,20.0,230.52,230.42,1.5441]
[1733727781570,0.8135204,230.51,230.42,1.5441]
[1733727781766,20.0,230.54,230.42,1.5441]
[1733727782077,0.81349194,230.53,230.42,1.5441]
[1733727787390,23.776884,230.52,230.42,1.5441]
[1733727787593,20.0,230.49,230.42,1.5441]
[1733727787807,0.81368775,230.48,230.42,1.5441]
[1733727791670,0.81360647,230.51,230.42,1.5441]
[1733727791887,23.776884,230.57,230.42,1.5441]
[1733727792196,23.776884,230.55,230.42,1.5441]
[1733727792496,23.776884,230.53,230.42,1.5441]
[1733727792676,0.81365213,230.52,230.42,1.5441]
[1733727792997,20.81365213,230.52,230.42,1.5441]
[1733727794074,0.81365213,230.52,230.42,1.5441]
[1733727794293,0.81355096,230.54,230.42,1.5441]
[1733727795686,20.0,230.52,230.42,1.5441]
[1733727795862,0.81364006,230.51,230.42,1.5441]
[1733727796686,20.0,230.47,230.42,1.5441]
[1733727796889,0.81371298,230.46,230.42,1.5441]
[1733727799493,0.81370843,230.49,230.42,1.5441]
[1733727799694,0.81360766,230.53,230.42,1.5441]
[1733727800091,0.8135656,230.59,230.42,1.5441]
[1733727800885,23.776884,230.58,230.42,1.5441]
[1733727801093,23.776884,230.56,230.42,1.5441]
[1733727801296,20.0,230.53,230.42,1.5441]
[1733727801602,0.81356708,230.52,230.42,1.5441]
[1733727802510,0.81357966,230.51,230.42,1.5441]
[1733727802808,20.0,230.5,230.42,1.5441]
[1733727802988,20.0,230.51,230.42,1.5441]
[1733727803186,16.21086293,230.61,230.43,6.4218]
[1733727803187,0.8134887,230.57,230.43,6.4218]
[1733727803390,16.21086293,230.61,230.44,1.5635]
[1733727803391,0.81339927,230.56,230.44,1.5635]
[1733727803701,0.81339466,230.6,230.44,1.5635]
[1733727803899,0.81337945,230.59,230.44,1.5635]
[1733727804099,6.70794969,230.62,230.44,1.5635]
[1733727804100,0.81337242,230.58,230.44,10.87047604]
[1733727804285,0.81333716,230.57,230.46,1.5635]
[1733727804480,0.81333351,230.61,230.46,1.5635]
[1733727804675,0.81333712,230.6,230.46,1.5635]
[1733727804900,0.81333785,230.59,230.46,1.5635]
[1733727805075,8.17194969,230.65,230.46,1.5635]
[1733727805076,0.81333775,230.58,230.46,1.5635]
[1733727805281,0.81333777,230.64,230.46,1.5635]
[1733727805500,20.81331196,230.63,230.46,1.5635]
[1733727805811,0.81331196,230.62,230.46,1.5635]
[1733727806018,0.81333529,230.61,230.46,1.5635]
[1733727806217,0.8133254,230.6,230.46,1.5635]
[1733727806506,0.81332361,230.59,230.46,1.5635]
[1733727806713,0.81332492,230.62,230.47,0.65065993]
[1733727806880,0.81332492,230.62,230.48,7.913]
[1733727807682,0.81323909,230.65,230.48,7.913]
[1733727808083,23.776884,230.62,230.48,7.913]
[1733727808312,20.0,230.59,230.48,7.913]
[1733727808688,0.81324729,230.58,230.48,7.913]
[1733727809789,0.8132519,230.61,230.49,2.28760152]
[1733727810684,0.8131714,230.62,230.49,2.28760152]
[1733727810998,0.8131714,230.62,230.5,6.4565]
[1733727811204,8.78019541,230.68,230.45,10.848]
[1733727811205,0.81311861,230.64,230.53,7.5489]
[1733727811517,0.81306878,230.67,230.53,7.5489]
[1733727811700,0.81306878,230.67,230.53,8.19935382]
[1733727811886,0.81306878,230.67,230.53,6.69785382]
[1733727812090,0.81306878,230.67,230.55,6.0474]
[1733727812318,0.81300301,230.7,230.57,6.0474]
[1733727812826,0.81300301,230.7,230.58,1.5015]
[1733727812986,0.81300301,230.7,230.59,6.0474]
[1733727813188,0.81286475,230.73,230.59,6.0474]
[1733727813393,0.81286475,230.73,230.6,7.5489]
[1733727814224,20.0,230.74,230.61,1.6183]
[1733727814512,0.81281421,230.73,230.61,1.6183]
[1733727814716,0.81281421,230.73,230.62,6.2294]
[1733727815713,0.81276216,230.75,230.63,34.70167184]
[1733727816191,0.81276216,230.75,230.63,1.6183]
[1733727816993,23.776884,230.74,230.63,1.6183]
[1733727817198,20.0,230.71,230.63,1.6183]
[1733727817390,0.81297475,230.7,230.63,1.6183]
[1733727818199,20.0,230.66,230.63,1.6183]
[1733727818404,0.81309288,230.65,230.63,1.6183]
[1733727823128,2.31289284,230.72,230.63,1.6183]
[1733727823129,22.31289284,230.72,230.63,1.6183]
[1733727823309,0.81289531,230.71,230.63,1.6183]
[1733727824228,0.81282537,230.76,230.63,1.6183]
[1733727824533,20.81282537,230.76,230.63,1.6183]
[1733727825326,23.776884,230.75,230.63,1.6183]
[1733727825504,20.0,230.72,230.63,1.6183]
[1733727825828,0.81280247,230.71,230.63,1.6183]
[1733727826711,20.0,230.72,230.63,1.6183]
[1733727827227,0.81279603,230.74,230.63,1.6183]
[1733727827727,0.81271335,230.75,230.63,1.6183]
[1733727833809,0.81271335,230.75,230.65,1.5903]
[1733727839952,20.0,230.71,230.65,1.5903]
[1733727840113,0.81289359,230.7,230.65,1.5903]
[1733727840512,0.81289359,230.7,230.64,6.5355]
[1733727842350,20.0,230.66,230.64,6.5355]
[1733727842545,0.81305959,230.65,230.6,1.5485]
[1733727844732,20.0,230.66,230.6,1.5485]
[1733727844937,0.81298899,230.65,230.6,1.5485]
[1733727847925,20.0,230.66,230.6,1.5485]
[1733727848443,0.81310715,230.68,230.6,1.5485]
[1733727848852,0.81293171,230.69,230.6,1.5485]
[1733727849055,0.81284313,230.74,230.6,1.5485]
[1733727849764,0.81284313,230.74,230.62,6.4519]
[1733727850058,2.31289284,230.81,230.63,1.6637]
[1733727850234,0.81272233,230.8,230.63,1.6637]
[1733727851145,20.81272233,230.8,230.63,1.6637]
[1733727852123,20.0,230.76,230.63,1.6637]
[1733727852345,0.81271904,230.75,230.63,1.6637]
[1733727852655,0.81272006,230.78,230.64,17.11995416]
[1733727852823,0.81272006,230.78,230.65,8.65627811]
[1733727853148,0.81272006,230.78,230.64,17.11995416]
[1733727853850,0.81264039,230.77,230.64,17.11995416]
[1733727854054,20.0,230.76,230.64,17.11995416]
[1733727854431,0.81264876,230.75,230.64,8.46367605]
[1733727855635,20.0,230.76,230.64,8.46367605]
[1733727857168,0.81265264,230.78,230.65,1.5946]
[1733727857364,0.81259305,230.8,230.66,7.22647444]
[1733727857729,20.81259305,230.8,230.66,6.5764]
[1733727859457,20.81259305,230.8,230.67,1.6404]
[1733727859842,0.81259305,230.8,230.68,7.05784214]
[1733727860168,2.31289284,230.81,230.7,6.421]
[1733727860351,0.81247668,230.82,230.7,6.421]
[1733727860352,0.81247668,230.82,230.7,7.07096116]
[1733727860565,0.81247668,230.82,230.71,1.6301]
[1733727860566,0.81239893,230.82,230.71,1.6301]
[1733727860733,0.81244177,230.87,230.71,1.6301]
[1733727861842,23.776884,230.86,230.71,1.6301]
[1733727862031,20.0,230.83,230.71,1.6301]
[1733727862229,0.81245408,230.82,230.71,1.6301]
[1733727862835,20.0,230.78,230.71,1.6301]
[1733727863034,0.81265696,230.77,230.71,1.6301]
[1733727863646,23.776884,230.76,230.71,1.6301]
[1733727863870,20.0,230.73,230.58,7.6134]
[1733727864044,0.81282407,230.72,230.58,9.30653736]
[1733727864252,0.81282407,230.72,230.59,7.7697]
[1733727865231,0.81282407,230.72,230.6,0.65022203]
[1733727865942,0.81282407,230.72,230.59,7.7697]
[1733727867751,0.81282407,230.72,230.59,16.42597811]
[1733727867963,0.81282407,230.72,230.59,17.07618302]
[1733727867964,0.81275614,230.72,230.59,17.07618302]
[1733727868167,0.81275447,230.72,230.59,17.07618302]
[1733727868372,20.0,230.73,230.59,17.07618302]
[1733727868688,0.81275469,230.72,230.59,17.07618302]
[1733727869272,20.0,230.68,230.59,7.7697]
[1733727869645,0.81275469,230.72,230.59,7.7697]
[1733727873077,20.0,230.68,230.59,7.7697]
[1733727873385,0.81299804,230.67,230.59,7.7697]
[1733727879063,23.776884,230.66,230.59,7.7697]
[1733727879270,0.81314267,230.65,230.59,1.5798]
[1733727879467,0.81314267,230.65,230.54,6.3884]
[1733727879468,0.81314267,230.65,230.54,7.9725]
[1733727879682,23.776884,230.64,230.54,7.9725]
[1733727879871,20.0,230.61,230.54,7.9725]
[1733727880070,0.81324315,230.6,230.54,7.9725]
[1733727880777,0.81324315,230.6,230.54,1.5841]
[1733727880985,0.81324315,230.6,230.49,7.6413]
[1733727884094,23.776884,230.59,230.49,7.6413]
[1733727884384,20.0,230.52,230.49,7.6413]
[1733727884708,0.81352763,230.51,230.49,7.6413]
[1733727886188,0.81352763,230.51,230.43,6.5453]
[1733727886387,20.0,230.52,230.43,6.5453]
[1733727886958,0.81349261,230.51,230.43,6.5453]
[1733727888273,0.81349603,230.54,230.43,15.20157811]
[1733727888473,23.776884,230.57,230.43,15.20157811]
[1733727888672,20.0,230.54,230.43,15.20157811]
[1733727889763,20.0,230.54,230.44,1.5822]
[1733727891292,0.8134153,230.53,230.44,1.5822]
[1733727892395,0.81344304,230.56,230.44,2.23295443]
[1733727892596,20.0,230.56,230.44,2.23295443]
[1733727892903,0.81337458,230.55,230.44,2.23295443]
[1733727895772,0.81337458,230.55,230.44,1.5822]
[1733727896968,20.0,230.51,230.44,1.5822]
[1733727897175,0.81360891,230.5,230.44,1.5822]
[1733727901293,0.81360891,230.5,230.43,6.5453]
[1733727901507,20.0,230.46,230.39,1.6267]
[1733727901687,0.81377168,230.45,230.39,1.6267]
[1733727902390,20.0,230.46,230.39,1.6267]
[1733727902722,0.81374995,230.48,230.39,1.6267]
[1733727903368,0.81364953,230.5,230.39,1.6267]
[1733727905495,20.0,230.46,230.39,1.6267]
[1733727905799,0.81376822,230.45,230.39,1.6267]
[1733727910919,20.0,230.41,230.39,1.6267]
[1733727911113,20.0,230.41,230.37,414.972819]
[1733727911812,20.0,230.45,230.37,414.972819]
[1733727912014,20.0,230.41,230.37,414.972819]
[1733727912718,0.81385442,230.44,230.37,414.972819]
[1733727912894,0.81385383,230.43,230.37,414.972819]
[1733727913094,20.0,230.41,230.37,414.972819]
[1733727913402,1.71738128,230.47,230.37,414.972819]
[1733727913403,0.81384646,230.47,230.38,0.65107716]
[1733727913584,0.81366422,230.52,230.39,6.1745]
[1733727914817,0.81366422,230.52,230.4,1.6442]
[1733727915005,0.81355263,230.57,230.4,1.6442]
[1733727916082,23.776884,230.55,230.4,1.6442]
[1733727916286,20.0,230.52,230.4,2.29503711]
[1733727916486,0.81354653,230.51,230.4,2.29503711]
[1733727916789,0.81354653,230.51,230.4,1.6442]
[1733727916990,23.776884,230.5,230.4,1.6442]
[1733727917302,20.0,230.47,230.4,1.6442]
[1733727917625,20.0,230.45,230.4,1.6442]
[1733727918120,23.776884,230.51,230.4,1.6442]
[1733727918311,20.0,230.48,230.4,1.6442]
[1733727918519,0.81363598,230.47,230.4,1.6442]
[1733727918728,20.0,230.52,230.4,1.6442]
[1733727918729,23.776884,230.49,230.4,1.6442]
[1733727918907,0.81362118,230.48,230.4,1.6442]
[1733727919228,20.0,230.47,230.4,1.6442]
[1733727919533,0.81367215,230.46,230.4,1.6442]
[1733727923235,20.0,230.47,230.4,1.6442]
[1733727923615,0.8137526,230.49,230.4,1.6442]
[1733727923831,0.81366096,230.52,230.4,1.6442]
[1733727924035,0.81366096,230.52,230.37,414.972819]
[1733727924036,20.0,230.43,230.37,414.972819]
[1733727924333,0.81401033,230.42,230.37,414.972819]
[1733727925018,20.0,230.38,230.37,414.972819]
[1733727930626,43.776884,230.38,230.37,414.972819]
[1733727935661,43.776884,230.38,230.37,382.63557929]
[1733727939258,43.776884,230.38,230.37,377.35557929]
[1733727939627,43.776884,230.38,230.37,355.53553154]
[1733727944261,43.776884,230.38,230.37,256.74411119]
[1733727944465,43.776884,230.38,230.37,256.55485119]
[1733727944797,43.776884,230.38,230.37,165.23316816]
[1733727945059,43.776884,230.38,230.37,70.74947938]
[1733727945261,51.05507493,230.38,230.37,11.25733661]
[1733727945448,51.05507493,230.38,230.35,7.00090706]
[1733727945449,44.59107493,230.38,230.35,7.00090706]
[1733727946270,49.59107493,230.38,230.35,5.60585236]
[1733727946436,56.43450906,230.38,230.35,5.60585236]
[1733727946932,56.43450906,230.38,230.24,0.12333024]
[1733727947263,23.776884,230.34,230.24,0.12333024]
[1733727947440,24.59133464,230.34,230.24,0.12333024]
[1733727948042,43.776884,230.31,230.24,0.12333024]
[1733727948344,20.0,230.25,230.05,0.6516775]
[1733727948563,5.0,230.17,230.0,28.3808617]
[1733727948761,20.0,230.13,230.03,1.5472]
[1733727948960,0.81498727,230.12,230.06,6.4537]
[1733727949157,5.0,230.23,230.06,6.4537]
[1733727949158,0.814916,230.22,230.06,7.1056328]
[1733727949362,23.776884,230.21,230.06,6.4537]
[1733727949561,20.0,230.16,230.06,6.4537]
[1733727949756,0.81489759,230.15,230.06,6.4537]
[1733727949953,5.0,230.27,230.06,6.4537]
[1733727949954,0.81477021,230.22,230.09,8.65627811]
[1733727950158,0.81459006,230.28,230.1,0.65167204]
[1733727950555,0.81459006,230.28,230.17,136.3]
[1733727950764,0.81459006,230.28,230.18,6.5278]
[1733727951287,0.81437695,230.31,230.2,1.5142]
[1733727951591,0.81424008,230.39,230.2,1.5142]
[1733727951761,10.0,230.37,230.2,1.5142]
[1733727951965,3.45797589,230.36,230.2,1.5142]
[1733727952328,5.0,230.31,230.2,1.5142]
[1733727952453,0.81468015,230.3,230.18,6.5278]
[1733727952652,23.776884,230.29,230.13,1.5142]
[1733727952853,0.81468015,230.3,230.13,1.5142]
[1733727952854,23.776884,230.27,230.13,1.5142]
[1733727953094,0.81464867,230.26,230.13,1.5142]
[1733727953260,0.81451399,230.3,230.13,15.10878168]
[1733727953456,0.81451399,230.3,230.14,23.776884]
[1733727954255,0.81448768,230.29,230.14,23.776884]
[1733727954560,20.0,230.33,230.14,23.776884]
[1733727954767,0.8144909,230.32,230.14,23.776884]
[1733727955081,20.0,230.28,230.14,23.776884]
[1733727955286,0.81449332,230.3,230.16,23.776884]
[1733727955584,0.81431277,230.35,230.16,23.776884]
[1733727956366,17.382628,230.34,230.19,23.776884]
[1733727956586,0.81420128,230.33,230.21,23.776884]
[1733727956789,0.81420434,230.41,230.21,23.776884]
[1733727956998,17.380101,230.37,230.21,23.776884]
[1733727957210,0.81420923,230.36,230.21,23.776884]
[1733727957567,20.0,230.34,230.23,23.776884]
[1733727957790,0.81415505,230.33,230.23,23.776884]
[1733727958177,0.81417413,230.39,230.23,23.776884]
[1733727958396,20.0,230.34,230.23,23.776884]
[1733727958596,0.81417544,230.33,230.23,23.776884]
[1733727958975,20.0,230.4,230.23,23.776884]
[1733727958976,17.379651,230.37,230.23,23.776884]
[1733727959174,20.0,230.34,230.23,23.776884]
[1733727959415,0.81417196,230.33,230.23,23.776884]
[1733727959768,5.0,230.47,230.23,23.776884]
[1733727959769,0.81418494,230.36,230.25,6.1361]
[1733727959968,0.81408764,230.45,230.25,6.1361]
[1733727960180,5.0,230.4,230.25,6.1361]
[1733727960490,6.19618271,230.48,230.25,6.1361]
[1733727960491,0.8140898,230.39,230.26,38.02273752]
[1733727960681,5.0,230.45,230.26,38.02273752]
[1733727960885,0.81399337,230.44,230.26,24.42815584]
[1733727961271,0.81399337,230.44,230.26,23.776884]
[1733727961688,20.0,230.42,230.25,6.1361]
[1733727961985,20.0,230.37,230.25,6.1361]
[1733727962183,23.776884,230.31,230.14,7.6365]
[1733727962392,0.81443285,230.3,230.15,14.24612796]
[1733727963287,27.84653456,230.49,230.23,37.37146568]
[1733727963288,0.81428839,230.36,230.23,37.37146568]
[1733727963471,0.81408833,230.41,230.23,37.37146568]
[1733727965008,0.81408833,230.41,230.22,23.776884]
[1733727965190,0.81408833,230.41,230.23,23.776884]
[1733727965908,0.81408833,230.41,230.22,37.37146568]
[1733727966100,0.81408833,230.41,230.23,13.59458168]
[1733727966278,0.81408833,230.41,230.24,23.776884]
[1733727967004,0.81408833,230.41,230.26,7.6365]
[1733727968991,43.776884,230.36,230.16,8.2737]
[1733727969191,20.0,230.31,230.16,8.2737]
[1733727969395,0.814362,230.3,230.16,8.2737]
[1733727969980,0.814362,230.3,230.17,13.59458168]
[1733727970206,0.81438441,230.3,230.18,13.59458168]
[1733727970509,0.81424643,230.32,230.19,23.776884]
[1733727970715,0.81424643,230.32,230.18,23.776884]
[1733727970876,0.81424643,230.32,230.16,8.2737]
[1733727971276,23.776884,230.31,230.16,8.2737]
[1733727971525,20.0,230.28,230.16,8.2737]
[1733727971806,0.81450444,230.27,230.16,8.2737]
[1733727973686,23.776884,230.32,230.16,8.2737]
[1733727974001,0.81439986,230.31,230.16,8.92521989]
[1733727974716,0.81439986,230.31,230.17,37.37146568]
[1733727975013,6.40562715,230.4,230.18,14.24602835]
[1733727975014,0.81430834,230.36,230.18,14.24602835]
[1733727975216,0.81430834,230.36,230.19,23.776884]
[1733727975511,0.81430834,230.36,230.23,37.37146568]
[1733727975814,0.81411621,230.44,230.23,37.37146568]
[1733727976409,23.776884,230.43,230.24,13.59458168]
[1733727976610,0.81404158,230.42,230.25,13.59458168]
[1733727976827,0.81404158,230.42,230.26,13.59458168]
[1733727977181,0.81404158,230.42,230.25,37.37146568]
[1733727977386,0.81404158,230.42,230.26,0.65123168]
[1733727977595,0.81402784,230.48,230.26,0.65123168]
[1733727977814,20.0,230.46,230.27,23.776884]
[1733727977985,0.81397792,230.45,230.27,23.776884]
[1733727978803,0.81397792,230.45,230.27,37.37146568]
[1733727979000,0.81397792,230.45,230.27,38.02264591]
[1733727979324,0.81397792,230.45,230.28,13.59458168]
[1733727979488,20.0,230.41,230.3,37.37146568]
[1733727979686,0.81387113,230.51,230.31,14.24567858]
[1733727980008,0.81387113,230.51,230.32,13.59458168]
[1733727980318,0.81387113,230.51,230.36,13.59458168]
[1733727980493,0.81387113,230.51,230.38,13.59458168]
[1733727980684,0.81387113,230.51,230.35,23.776884]
[1733727980685,0.81364678,230.55,230.35,13.59458168]
[1733727981020,0.81364678,230.55,230.36,14.24553161]
[1733727981216,0.81364678,230.55,230.37,37.37146568]
[1733727981387,0.81364678,230.55,230.33,13.59458168]
[1733727982017,0.81364678,230.55,230.34,13.59458168]
[1733727982359,0.81364678,230.55,230.36,13.59458168]
[1733727982504,0.81364678,230.55,230.34,23.776884]
[1733727983105,0.81364678,230.55,230.31,13.59458168]
[1733727983291,15.82784938,230.54,230.3,23.776884]
[1733727983489,20.0,230.46,230.29,8.072]
[1733727983689,20.0,230.42,230.29,8.072]
[1733727983888,0.81397566,230.41,230.29,8.072]
[1733727984535,0.81397566,230.41,230.23,21.59658168]
[1733727985017,0.81397566,230.41,230.24,13.59458168]
[1733727985401,0.75675362,230.41,230.24,13.59458168]
[1733727985914,0.75675362,230.41,230.27,13.59458168]
[1733727986143,0.75675362,230.41,230.26,37.37146568]
[1733727986546,0.75675362,230.41,230.26,23.776884]
[1733727986849,0.75675362,230.41,230.28,23.776884]
[1733727987947,0.75675362,230.41,230.3,13.59458168]
[1733727988254,0.73603753,230.44,230.29,0.65114104]
[1733727988416,0.73603753,230.44,230.28,14.24574889]
[1733727988619,0.73603753,230.44,230.29,23.776884]
[1733727988821,0.73603753,230.47,230.31,37.37146568]
[1733727989015,0.73603753,230.47,230.33,23.776884]
[1733727989218,0.73603753,230.52,230.35,23.776884]
[1733727989636,0.73603753,230.52,230.37,23.776884]
[1733727989958,0.73603753,230.52,230.38,0.65089825]
[1733727990343,0.73603753,230.52,230.39,23.776884]
[1733727990527,0.73603753,230.57,230.41,23.776884]
[1733727991247,0.73603753,230.57,230.42,0.65079027]
[1733727991450,0.73603753,230.57,230.43,45.48067712]
[1733727991632,0.73603753,230.57,230.45,21.70379312]
[1733727991825,0.73603753,230.56,230.46,0.65067765]
[1733727992026,0.73603753,230.64,230.47,45.48067712]
[1733727992218,0.73603753,230.64,230.49,23.776884]
[1733727992442,0.73603753,230.64,230.5,0.65055113]
[1733727993751,20.0,230.62,230.5,0.65055113]
[1733727993929,0.73603753,230.61,230.51,23.776884]
[1733727994252,8.5724,230.65,230.52,0.65045439]
[1733727994253,0.73603753,230.64,230.52,0.65045439]
[1733727994453,0.73603753,230.64,230.46,0.65053167]
[1733727994658,0.73603753,230.64,230.43,41.70379312]
[1733727994829,0.73603753,230.64,230.47,21.70379312]
[1733727995023,0.73603753,230.64,230.49,21.70379312]
[1733727995228,0.73603753,230.64,230.44,23.776884]
[1733727995229,0.73603753,230.64,230.51,23.776884]
[1733727995430,0.73603753,230.64,230.52,0.6504982]
[1733727995730,0.73603753,230.7,230.55,21.70379312]
[1733727995926,0.73603753,230.7,230.52,0.6504982]
[1733727995927,0.73603753,230.7,230.56,46.13106834]
[1733727996651,0.73603753,230.7,230.58,23.776884]
[1733727996858,0.73603753,230.7,230.58,24.42717972]
[1733727997153,0.73603753,230.76,230.58,24.42717972]
[1733727997533,0.73603753,230.76,230.61,23.776884]
[1733727997743,0.73603753,230.76,230.62,0.65022642]
[1733727998061,0.73603753,230.76,230.63,45.48067712]
[1733727998234,0.73603753,230.76,230.64,0.65016675]
[1733727999136,0.73603753,230.76,230.62,23.776884]
[1733727999326,0.73603753,230.76,230.61,23.776884]
[1733727999524,20.0,230.74,230.57,23.776884]
[1733727999722,0.73603753,230.73,230.56,23.776884]
[1733728000353,23.776884,230.73,230.64,5.0]
[1733728000555,20.0,230.7,230.64,5.0]
[1733728001477,20.0,230.7,230.62,5.0]
[1733728001676,20.0,230.7,230.62,69.8]
[1733728001890,23.776884,230.69,230.62,69.8]
[1733728002389,20.0,230.66,230.54,10.0]
[1733728002575,20.0,230.66,230.6,7.6]
[1733728003561,20.0,230.66,230.56,5.0]
[1733728003864,20.0,230.66,230.6,7.6]
[1733728004778,23.776884,230.65,230.6,7.6]
[1733728004986,20.0,230.62,230.6,7.6]
[1733728005483,20.0,230.62,230.54,7.6]
[1733728005981,20.0,230.58,230.54,7.6]
[1733728006357,20.0,230.58,230.52,7.6]
[1733728006555,23.776884,230.57,230.52,7.6]
[1733728006856,20.0,230.54,230.48,7.77809264]
[1733728007488,20.0,230.54,230.48,7.6]
[1733728011096,20.0,230.5,230.48,7.6]
[1733728012301,20.0,230.53,230.48,7.6]
[1733728012820,1.7938,230.63,230.48,12.6]
[1733728013100,1.7938,230.63,230.5,5.0]
[1733728013483,1.7938,230.63,230.52,5.0]
[1733728013668,1.7938,230.63,230.52,7.6]
[1733728014894,20.0,230.59,230.52,7.6]
[1733728015096,23.776884,230.62,230.52,7.6]
[1733728015266,23.776884,230.62,230.53,5.0]
[1733728016386,20.0,230.59,230.52,7.6]
[1733728017902,20.0,230.55,230.52,7.6]
[1733728020385,20.0,230.55,230.46,14.6786817]
[1733728020598,20.0,230.55,230.48,10.0]